bitfinex/quotes_BTCUSD_20240902
["timestamp","ask_amount","ask_price","bid_price","bid_amount"]
[1725270647821,0.20721494,58444.0,58425.0,0.20751]
[1725270647822,0.119787,58437.0,58425.0,0.20751]
[1725270648084,0.29413,58448.0,58429.0,0.119802]
[1725270648085,0.11978,58441.0,58429.0,0.119802]
[1725270648321,0.29413,58448.0,58425.0,0.0877]
[1725270648322,0.239568,58439.0,58425.0,0.0877]
[1725270648585,0.20721494,58444.0,58425.0,0.0877]
[1725270648586,0.119785,58438.0,58425.0,0.0877]
[1725270648802,0.239558,58441.0,58426.0,0.00342286]
[1725270649019,0.23924652,58441.0,58428.0,0.119805]
[1725270649252,0.23924652,58441.0,58425.0,0.0877]
[1725270649504,0.002,58437.0,58425.0,0.0877]
[1725270649778,0.119797,58433.0,58425.0,0.0877]
[1725270650237,0.20721494,58444.0,58425.0,0.0877]
[1725270650238,0.239585,58435.0,58425.0,0.0877]
[1725270650507,0.239585,58435.0,58419.0,0.0801]
[1725270650508,0.20721494,58432.0,58419.0,0.0801]
[1725270650748,0.119813,58424.0,58415.0,0.62523786]
[1725270651180,0.239601,58431.0,58414.0,0.0839]
[1725270651405,0.239624,58425.0,58414.0,0.0839]
[1725270651634,0.239629,58424.0,58414.0,0.0839]
[1725270651895,0.20721494,58432.0,58414.0,0.0839]
[1725270651896,0.20721494,58432.0,58415.0,0.239663]
[1725270652148,0.239622,58426.0,58414.0,0.0839]
[1725270652395,0.23963,58424.0,58414.0,0.0839]
[1725270652607,0.20721494,58432.0,58417.0,0.119827]
[1725270652872,0.119808,58427.0,58425.0,0.009]
[1725270653086,0.23966,58417.0,58409.0,0.0811]
[1725270653311,0.119838,58413.0,58407.0,0.0704]
[1725270653567,0.0546,58419.0,58414.0,0.001]
[1725270653568,0.3595,58415.0,58414.0,0.001]
[1725270653777,0.119843,58410.0,58405.0,0.085]
[1725270654031,0.239668,58415.0,58405.0,0.085]
[1725270654256,0.239679,58412.0,58405.0,0.085]
[1725270654484,0.119846,58408.0,58405.0,0.085]
[1725270654718,0.11985,58406.0,58405.0,0.085]
[1725270654953,0.11985,58406.0,58402.0,0.0008965]
[1725270654954,0.239713,58403.0,58402.0,0.0008965]
[1725270655212,0.80649694,58403.0,58402.0,0.0008965]
[1725270655451,0.119856,58403.0,58402.0,0.0008965]
[1725270655670,0.599282,58403.0,58402.0,0.0008965]
[1725270655898,1.10613814,58403.0,58402.0,0.0008965]
[1725270656117,1.04620994,58403.0,58402.0,0.0008965]
[1725270656344,1.142482,58403.0,58402.0,0.0008965]
[1725270656613,1.165482,58403.0,58402.0,0.0008965]
[1725270657290,1.13860994,58403.0,58402.0,0.0008965]
[1725270657738,1.23860994,58403.0,58402.0,0.0008965]
[1725270657953,1.36813093,58403.0,58402.0,0.0008965]
[1725270658206,1.23860994,58403.0,58402.0,0.0008965]
[1725270658420,1.41980994,58403.0,58402.0,0.0008965]
[1725270658679,1.23860994,58403.0,58402.0,0.0008965]
[1725270659421,0.99889694,58403.0,58402.0,0.0008965]
[1725270660187,0.48644483,58403.0,58402.0,0.0008965]
[1725270660657,0.459569,58403.0,58402.0,0.0008965]
[1725270661106,0.119855,58404.0,58402.0,0.0008965]
[1725270661341,0.20721494,58409.0,58402.0,0.0008965]
[1725270661568,0.119856,58403.0,58402.0,0.0008965]
[1725270661799,0.599282,58403.0,58402.0,0.0008965]
[1725270662029,1.04620994,58403.0,58402.0,0.0008965]
[1725270662288,1.10080994,58403.0,58402.0,0.0008965]
[1725270662572,1.23138622,58403.0,58402.0,0.0008965]
[1725270662823,1.59409922,58403.0,58402.0,0.0008965]
[1725270663070,1.59609922,58403.0,58402.0,0.0008965]
[1725270663317,0.294375,58388.0,58369.0,0.1473]
[1725270663572,0.239784,58386.0,58370.0,0.00342638]
[1725270663847,0.21989,58387.0,58370.0,0.08492638]
[1725270664104,0.002,58401.0,58370.0,0.08492638]
[1725270664105,0.02688101,58384.0,58379.0,0.239808]
[1725270664338,0.02688101,58384.0,58383.0,0.119897]
[1725270664585,0.02688101,58384.0,58382.0,0.119898]
[1725270664849,0.02688101,58384.0,58382.0,0.119899]
[1725270665118,0.02688101,58384.0,58383.0,0.99840745]
[1725270665357,0.20721494,58422.0,58396.0,0.0859]
[1725270665652,0.1212,58423.0,58396.0,0.0859]
[1725270665653,0.50540786,58415.0,58399.0,0.119863]
[1725270665909,0.03284149,58421.0,58382.0,0.0866]
[1725270665910,0.02687528,58384.0,58382.0,0.0866]
[1725270666149,0.02687528,58384.0,58378.0,0.0659]
[1725270666150,0.119873,58395.0,58394.0,0.50540786]
[1725270666398,0.119869,58397.0,58383.0,0.239795]
[1725270666619,0.1,58406.0,58393.0,0.239754]
[1725270666843,0.0662,58410.0,58394.0,0.0798]
[1725270666844,0.119859,58402.0,58394.0,0.0798]
[1725270667114,0.1,58412.0,58394.0,0.0798]
[1725270667115,0.17305346,58413.0,58395.0,0.239746]
[1725270667343,0.17305346,58413.0,58394.0,0.0798]
[1725270667344,0.023,58412.0,58394.0,0.0798]
[1725270667555,0.17305346,58413.0,58396.0,0.23974]
[1725270667556,0.17305346,58410.0,58396.0,0.23974]
[1725270667801,0.007816,58426.0,58404.0,0.0838]
[1725270667802,0.000816,58426.0,58404.0,0.0838]
[1725270668025,0.000816,58426.0,58417.0,0.239655]
[1725270668247,0.240436,58426.0,58416.0,0.199329]
[1725270668469,0.240436,58426.0,58418.0,0.119824]
[1725270668470,0.000816,58426.0,58418.0,0.119824]
[1725270668812,0.000816,58426.0,58416.0,0.0795]
[1725270668988,0.000816,58426.0,58417.0,0.07162351]
[1725270669236,0.000816,58426.0,58419.0,0.239644]
[1725270669488,0.000816,58426.0,58417.0,0.07162351]
[1725270669699,0.000816,58426.0,58422.0,0.119816]
[1725270669950,0.000816,58426.0,58417.0,0.0682]
[1725270670206,0.000816,58426.0,58418.0,0.119825]
[1725270670207,0.120627,58426.0,58418.0,0.119825]
[1725270670418,0.000816,58426.0,58417.0,0.0682]
[1725270670903,0.000816,58426.0,58425.0,0.359434]
[1725270671143,0.000816,58426.0,58425.0,0.99208]
[1725270671397,0.000816,58426.0,58425.0,0.752457]
[1725270671659,0.000816,58426.0,58425.0,0.273211]
[1725270671887,0.000816,58426.0,58425.0,0.1534]
[1725270672094,0.000816,58426.0,58425.0,0.0872]
[1725270672601,0.000816,58426.0,58425.0,0.686257]
[1725270672865,0.000816,58426.0,58425.0,0.92588]
[1725270673117,0.000816,58426.0,58425.0,0.686257]
[1725270673339,0.000816,58426.0,58425.0,0.0872]
[1725270673553,0.000816,58426.0,58422.0,0.0686]
[1725270673816,0.000816,58426.0,58420.0,0.0805]
[1725270674056,0.119816,58423.0,58420.0,0.0805]
[1725270674275,0.119813,58425.0,58420.0,0.0805]
[1725270674499,0.000816,58426.0,58420.0,0.0805]
[1725270675025,0.000816,58426.0,58422.0,0.119816]
[1725270675227,0.000816,58426.0,58420.0,0.0805]
[1725270675969,0.000816,58426.0,58420.0,0.20032]
[1725270676200,0.119814,58424.0,58420.0,0.0805]
[1725270676487,0.239625,58425.0,58420.0,0.0805]
[1725270676702,0.11983,58416.0,58409.0,0.1469]
[1725270676982,0.0532,58424.0,58409.0,0.1469]
[1725270676983,0.119825,58419.0,58409.0,0.1469]
[1725270677231,0.000816,58426.0,58416.0,0.0815]
[1725270677490,0.000816,58426.0,58425.0,0.119811]
[1725270677743,0.000816,58426.0,58416.0,0.0815]
[1725270677744,0.000816,58426.0,58418.0,0.119825]
[1725270677994,0.000816,58426.0,58416.0,0.0815]
[1725270678684,0.000816,58426.0,58425.0,0.119811]
[1725270678923,0.000816,58426.0,58425.0,0.745657]
[1725270679603,0.000816,58426.0,58425.0,0.506034]
[1725270679827,0.000816,58426.0,58425.0,0.266411]
[1725270680045,0.000816,58426.0,58418.0,0.239648]
[1725270680046,0.000816,58426.0,58418.0,0.0832]
[1725270680275,0.000816,58426.0,58423.0,0.119815]
[1725270680530,0.119812,58425.0,58418.0,0.0832]
[1725270680744,0.000816,58426.0,58418.0,0.0832]
[1725270680982,0.000816,58426.0,58419.0,0.239647]
[1725270681214,0.000816,58426.0,58418.0,0.0832]
[1725270681430,0.239623,58425.0,58418.0,0.0832]
[1725270681666,0.000816,58426.0,58408.0,0.0833]
[1725270681667,0.2074415,58420.0,58408.0,0.0833]
[1725270681884,0.119838,58413.0,58408.0,0.58870786]
[1725270682115,0.2074415,58420.0,58408.0,0.58870786]
[1725270682116,0.2074415,58420.0,58408.0,0.0833]
[1725270682781,0.2074415,58420.0,58410.0,0.239684]
[1725270682782,0.119824,58419.0,58410.0,0.239684]
[1725270683026,0.119844,58409.0,58408.0,0.0833]
[1725270683238,0.2074415,58420.0,58405.0,0.1526]
[1725270683703,0.119819,58421.0,58415.0,0.119831]
[1725270683922,0.239634,58423.0,58405.0,0.1526]
[1725270684195,0.239629,58424.0,58405.0,0.1526]
[1725270684428,0.1,58425.0,58405.0,0.1526]
[1725270684429,0.1,58425.0,58406.0,0.239701]
[1725270684672,0.119828,58417.0,58411.0,0.119839]
[1725270684911,0.239632,58423.0,58409.0,0.239687]
[1725270685119,0.119826,58418.0,58411.0,0.119839]
[1725270685346,0.239636,58422.0,58413.0,0.119834]
[1725270685567,0.119823,58420.0,58413.0,0.119834]
[1725270685780,0.119823,58420.0,58409.0,0.239687]
[1725270685781,0.119823,58420.0,58414.0,0.119833]
[1725270686025,0.239636,58422.0,58405.0,0.1526]
[1725270686204,0.119816,58423.0,58416.0,0.119829]
[1725270686417,0.119822,58420.0,58417.0,0.0872]
[1725270686662,0.2082575,58426.0,58419.0,0.119823]
[1725270686889,0.1,58425.0,58420.0,0.0652]
[1725270687396,0.000816,58426.0,58420.0,0.0652]
[1725270687617,0.120626,58426.0,58420.0,0.06477568]
[1725270687830,0.119811,58425.0,58420.0,0.06477568]
[1725270688110,0.119811,58425.0,58417.0,0.0872]
[1725270688111,0.119822,58420.0,58417.0,0.0872]
[1725270688329,0.2082575,58426.0,58417.0,0.0872]
[1725270688837,0.2082575,58426.0,58425.0,0.204011]
[1725270688838,0.000816,58426.0,58425.0,0.204011]
[1725270689075,0.000816,58426.0,58425.0,0.443634]
[1725270689286,0.000816,58426.0,58425.0,0.683257]
[1725270689526,0.000816,58426.0,58425.0,0.204011]
[1725270689768,0.000816,58426.0,58425.0,0.0842]
[1725270690220,0.000816,58426.0,58425.0,0.443634]
[1725270690472,0.000816,58426.0,58425.0,0.204011]
[1725270690708,0.000816,58426.0,58425.0,0.512334]
[1725270691161,0.000816,58426.0,58425.0,0.0842]
[1725270691640,0.000816,58426.0,58421.0,0.0821]
[1725270692342,0.000816,58426.0,58422.0,0.119817]
[1725270692589,0.119816,58423.0,58421.0,0.0821]
[1725270692796,0.000816,58426.0,58421.0,0.0821]
[1725270693241,0.359452,58422.0,58421.0,0.0821]
[1725270693588,0.359452,58422.0,58403.0,0.05085421]
[1725270693589,0.068,58421.0,58402.0,0.0008976]
[1725270693798,0.7720569,58410.0,58402.0,0.0008976]
[1725270694058,1.1320409,58410.0,58402.0,0.0008976]
[1725270694268,0.005,58409.0,58402.0,0.0008976]
[1725270694482,1.1330419,58403.0,58402.0,0.0008976]
[1725270694692,1.2330419,58403.0,58402.0,0.0008976]
[1725270694903,1.1361859,58403.0,58402.0,0.0008976]
[1725270695173,1.2560419,58403.0,58402.0,0.0008976]
[1725270695370,1.4957549,58403.0,58402.0,0.0008976]
[1725270695885,1.4957549,58403.0,58378.0,0.0873]
[1725270695886,0.119906,58379.0,58378.0,0.0873]
[1725270696090,0.359718,58379.0,58378.0,0.0873]
[1725270696323,0.119906,58379.0,58378.0,0.0873]
[1725270696536,0.239776,58388.0,58378.0,0.0873]
[1725270696745,0.20778705,58389.0,58378.0,0.0873]
[1725270696962,0.23466847,58395.0,58378.0,0.0873]
[1725270697165,0.1,58394.0,58381.0,0.239802]
[1725270697378,0.239747,58395.0,58382.0,0.00342531]
[1725270697622,0.239751,58394.0,58385.0,0.119892]
[1725270697861,0.119883,58390.0,58383.0,0.119897]
[1725270698096,0.1,58400.0,58383.0,0.119897]
[1725270698357,0.20778705,58395.0,58380.0,0.1502]
[1725270698560,0.08455071,58399.0,58375.0,0.082]
[1725270698561,0.119912,58376.0,58375.0,0.082]
[1725270698816,0.119918,58373.0,58372.0,0.0681]
[1725270699060,0.20778705,58383.0,58357.0,0.008976]
[1725270699061,0.119928,58368.0,58367.0,0.0681]
[1725270699300,0.20778705,58383.0,58371.0,0.119922]
[1725270699582,0.11991,58378.0,58372.0,0.119919]
[1725270700039,0.20778705,58383.0,58367.0,0.0681]
[1725270700251,0.119914,58375.0,58367.0,0.0681]
[1725270700463,0.239819,58378.0,58367.0,0.0681]
[1725270700464,0.14679381,58377.0,58370.0,0.119922]
[1725270700725,0.119916,58374.0,58368.0,0.119928]
[1725270700937,0.119913,58376.0,58368.0,0.119928]
[1725270701151,0.119913,58376.0,58367.0,0.0681]
[1725270701152,0.119914,58375.0,58369.0,0.119926]
[1725270702204,0.119914,58376.0,58367.0,0.0681]
[1725270702418,0.119914,58376.0,58370.0,0.119922]
[1725270702653,0.239786,58386.0,58371.0,0.0834]
[1725270702865,0.00910904,58396.0,58371.0,0.0834]
[1725270702866,0.20778705,58401.0,58377.0,0.0834]
[1725270703118,0.20778705,58395.0,58378.0,0.0834]
[1725270703372,0.119896,58384.0,58378.0,0.0834]
[1725270703586,0.119899,58383.0,58378.0,0.0834]
[1725270703824,0.119894,58385.0,58378.0,0.0834]
[1725270704030,0.11989,58387.0,58380.0,0.119903]
[1725270704273,0.20778705,58395.0,58381.0,0.239803]
[1725270704488,0.119889,58387.0,58382.0,0.198498]
[1725270704711,0.239776,58388.0,58382.0,0.0786]
[1725270704929,0.1,58394.0,58382.0,0.0786]
[1725270704930,0.239771,58389.0,58382.0,0.0786]
[1725270705137,0.119887,58389.0,58382.0,0.0786]
[1725270705354,0.119889,58388.0,58382.0,0.198499]
[1725270705579,0.119892,58386.0,58382.0,0.0786]
[1725270705826,0.359724,58378.0,58377.0,0.0801]
[1725270706280,0.20778705,58381.0,58369.0,0.0858]
[1725270706281,0.0477,58379.0,58369.0,0.0858]
[1725270706525,0.20778705,58381.0,58369.0,0.0858]
[1725270706526,0.119923,58371.0,58369.0,0.0858]
[1725270706952,0.119924,58370.0,58369.0,0.0858]
[1725270707649,0.239818,58378.0,58369.0,0.08545581]
[1725270707650,0.239825,58376.0,58369.0,0.08545581]
[1725270707859,0.119913,58376.0,58369.0,0.20487481]
[1725270708265,0.119916,58374.0,58369.0,0.20487481]
[1725270708708,0.119913,58376.0,58370.0,0.119924]
[1725270709118,0.239818,58378.0,58370.0,0.119924]
[1725270709119,0.119914,58375.0,58370.0,0.119924]
[1725270709327,0.239818,58378.0,58369.0,0.08494981]
[1725270709328,0.119919,58373.0,58369.0,0.08494981]
[1725270709782,0.0643,58386.0,58369.0,0.08494981]
[1725270710010,0.119904,58380.0,58373.0,0.239836]
[1725270710216,0.119896,58384.0,58375.0,0.0651]
[1725270710426,0.239796,58383.0,58375.0,0.185013]
[1725270710637,0.1,58386.0,58375.0,0.0651]
[1725270710877,0.119896,58384.0,58379.0,0.119905]
[1725270711165,0.119899,58383.0,58377.0,0.119908]
[1725270711375,0.119899,58383.0,58378.0,0.119908]
[1725270711815,0.239775,58389.0,58380.0,0.119903]
[1725270711816,0.119894,58385.0,58380.0,0.119903]
[1725270712049,0.119879,58392.0,58385.0,0.239786]
[1725270712306,0.002,58406.0,58387.0,0.0838]
[1725270712307,0.0485,58404.0,58387.0,0.0838]
[1725270712535,0.27528705,58406.0,58388.0,0.00342497]
[1725270712775,0.27528705,58406.0,58387.0,0.0838]
[1725270712776,0.239707,58405.0,58387.0,0.0838]
[1725270712983,0.119868,58398.0,58393.0,0.119875]
[1725270713226,0.119875,58394.0,58387.0,0.0838]
[1725270713489,0.119873,58395.0,58390.0,0.119883]
[1725270713771,0.002,58419.0,58373.0,0.50540786]
[1725270713772,0.119837,58413.0,58407.0,0.119847]
[1725270714005,0.50540786,58415.0,58411.0,0.0857]
[1725270714219,0.20778705,58425.0,58411.0,0.0857]
[1725270714464,0.119838,58412.0,58411.0,0.0857]
[1725270714720,0.20778705,58413.0,58405.0,0.0832]
[1725270715132,0.20778705,58413.0,58389.0,0.50540786]
[1725270715133,0.239697,58407.0,58395.0,0.0832]
[1725270715135,0.119871,58396.0,58395.0,0.0832]
[1725270716113,0.37725571,58412.0,58398.0,0.119865]
[1725270716114,0.119856,58404.0,58398.0,0.119865]
[1725270716580,0.119857,58403.0,58398.0,0.119865]
[1725270716816,0.239704,58406.0,58397.0,0.119869]
[1725270716817,0.119859,58402.0,58397.0,0.119869]
[1725270717056,0.119857,58403.0,58398.0,0.119867]
[1725270717296,0.02687181,58401.0,58398.0,0.119867]
[1725270718292,0.02687181,58401.0,58395.0,0.0832]
[1725270718535,0.02687181,58401.0,58396.0,0.239739]
[1725270718776,0.02687181,58401.0,58395.0,0.203071]
[1725270718777,0.119864,58400.0,58395.0,0.203071]
[1725270719031,0.119864,58400.0,58395.0,0.0832]
[1725270719032,0.119868,58398.0,58395.0,0.0832]
[1725270719275,0.02687181,58401.0,58395.0,0.0832]
[1725270719505,0.02687181,58401.0,58398.0,0.119865]
[1725270719953,0.02687181,58401.0,58396.0,0.35961]
[1725270720416,0.02687181,58401.0,58396.0,0.239742]
[1725270720652,0.02687181,58401.0,58400.0,0.443389]
[1725270720891,0.02687181,58401.0,58400.0,1.008841]
[1725270721151,0.000816,58426.0,58420.0,0.1468]
[1725270721418,0.239623,58425.0,58420.0,0.1468]
[1725270721653,0.000816,58426.0,58421.0,0.119818]
[1725270721894,0.120626,58426.0,58420.0,0.1468]
[1725270722142,0.000816,58426.0,58420.0,0.1468]
[1725270722370,0.120626,58426.0,58420.0,0.1468]
[1725270722609,0.239625,58425.0,58420.0,0.1468]
[1725270722844,0.359458,58421.0,58420.0,0.1468]
[1725270723080,0.359458,58421.0,58415.0,0.0777]
[1725270723081,0.239639,58421.0,58415.0,0.0777]
[1725270723302,0.000816,58426.0,58416.0,0.00342354]
[1725270723535,0.000816,58426.0,58422.0,0.119816]
[1725270723773,0.000816,58426.0,58425.0,0.119811]
[1725270724065,0.000816,58426.0,58425.0,0.679357]
[1725270724294,0.02767543,58426.0,58425.0,0.744657]
[1725270724509,0.02767543,58426.0,58425.0,0.505034]
[1725270725003,0.14748443,58426.0,58425.0,0.1456]
[1725270725220,0.14748443,58426.0,58425.0,0.0803]
[1725270725442,0.02767543,58426.0,58425.0,0.0803]
[1725270725927,0.02767543,58426.0,58425.0,0.200111]
[1725270726139,0.02767543,58426.0,58425.0,0.439734]
[1725270726360,0.14748443,58426.0,58425.0,0.0803]
[1725270726653,0.38710343,58426.0,58425.0,0.0803]
[1725270726894,0.359446,58423.0,58422.0,0.0683]
[1725270727108,0.359446,58423.0,58394.0,0.07614329]
[1725270727109,0.359458,58421.0,58420.0,0.0806]
[1725270727324,0.119819,58421.0,58420.0,0.0806]
[1725270727545,0.02767543,58426.0,58420.0,0.0806]
[1725270727546,0.000816,58426.0,58421.0,0.119819]
[1725270727785,0.120627,58426.0,58420.0,0.20008128]
[1725270728036,0.120627,58426.0,58420.0,0.19729591]
[1725270728037,0.00023393,58421.0,58420.0,0.19729591]
[1725270728273,0.00023393,58421.0,58420.0,0.19719785]
[1725270728504,0.00023393,58421.0,58420.0,0.43684085]
[1725270728733,0.00023393,58421.0,58420.0,0.67648385]
[1725270729222,0.00023393,58421.0,58420.0,0.91612685]
[1725270729447,0.02709264,58421.0,58420.0,0.98192685]
[1725270729926,0.000816,58426.0,58425.0,0.66412307]
[1725270730658,0.000816,58426.0,58425.0,0.90374607]
[1725270730881,0.000816,58426.0,58425.0,1.33676358]
[1725270731121,0.000816,58426.0,58425.0,1.41746358]
[1725270731347,0.000816,58426.0,58425.0,0.98183512]
[1725270732035,0.000816,58426.0,58425.0,0.74221212]
[1725270732696,0.0276722,58426.0,58425.0,0.74221212]
[1725270733394,0.0276722,58426.0,58425.0,0.98183512]
[1725270734147,0.0276722,58426.0,58425.0,0.74221212]
[1725270736182,0.000816,58441.0,58437.0,0.119786]
[1725270736407,0.000816,58441.0,58438.0,0.203984]
[1725270736639,0.000816,58441.0,58433.0,0.0831]
[1725270736886,0.239581,58436.0,58429.0,0.0831]
[1725270737118,0.121,58440.0,58428.0,0.4788]
[1725270737335,0.119788,58437.0,58428.0,0.4788]
[1725270737576,0.119798,58432.0,58428.0,0.4788]
[1725270737833,0.50540786,58429.0,58404.0,0.17300546]
[1725270738096,0.119838,58412.0,58411.0,0.0831]
[1725270738334,0.359514,58412.0,58411.0,0.0831]
[1725270739039,0.239666,58415.0,58411.0,0.0831]
[1725270739265,0.359514,58412.0,58411.0,0.0831]
[1725270739489,0.359514,58412.0,58408.0,0.0681]
[1725270739490,0.119844,58409.0,58408.0,0.0681]
[1725270739772,0.119839,58412.0,58408.0,0.0681]
[1725270740006,0.02686584,58409.0,58408.0,0.0681]
[1725270740242,0.17300546,58423.0,58408.0,0.0681]
[1725270740480,0.119842,58411.0,58408.0,0.0681]
[1725270740713,0.239641,58421.0,58409.0,0.00342377]
[1725270740937,0.17300546,58423.0,58409.0,0.119842]
[1725270741193,0.11983,58416.0,58409.0,0.119843]
[1725270741411,0.11983,58416.0,58408.0,0.0681]
[1725270741626,0.119832,58415.0,58410.0,0.119842]
[1725270741843,0.119834,58414.0,58408.0,0.187945]
[1725270742204,0.119829,58417.0,58408.0,0.0681]
[1725270742440,0.17300546,58423.0,58408.0,0.0681]
[1725270742441,0.119834,58415.0,58408.0,0.0681]
[1725270742648,0.119834,58415.0,58409.0,0.119843]
[1725270743005,0.119829,58417.0,58410.0,0.119842]
[1725270743477,0.02686525,58414.0,58410.0,0.119842]
[1725270743700,0.02686525,58414.0,58408.0,0.0681]
[1725270743913,0.000816,58426.0,58413.0,0.086]
[1725270744139,0.000816,58426.0,58425.0,0.445434]
[1725270744349,0.000616,58426.0,58425.0,0.445434]
[1725270744840,0.02747601,58426.0,58425.0,0.510934]
[1725270745673,0.02747601,58426.0,58425.0,0.271311]
[1725270746133,0.02747601,58426.0,58425.0,0.510934]
[1725270747113,0.000616,58426.0,58425.0,0.510934]
[1725270747329,0.000616,58426.0,58425.0,0.99018]
[1725270749032,0.000616,58426.0,58425.0,0.750557]
[1725270749889,0.11871068,58438.0,58432.0,0.119796]
[1725270750102,0.000816,58441.0,58431.0,0.00342257]
[1725270750311,0.000816,58441.0,58437.0,0.119786]
[1725270750520,0.120594,58441.0,58437.0,0.119786]
[1725270750730,0.120594,58441.0,58435.0,0.11979]
[1725270750944,0.000816,58441.0,58439.0,0.119781]
[1725270751216,0.02767245,58441.0,58440.0,0.42816304]
[1725270751427,0.000816,58441.0,58440.0,0.99328504]
[1725270751677,0.000816,58441.0,58440.0,1.09328504]
[1725270751912,0.000816,58441.0,58440.0,1.11628504]
[1725270752181,0.000816,58441.0,58440.0,1.35584604]
[1725270752399,0.000815,58442.0,58441.0,0.605892]
[1725270752674,0.00817,58455.0,58454.0,0.91696546]
[1725270752894,0.00817,58455.0,58454.0,0.74396]
[1725270753614,0.00817,58455.0,58454.0,0.983464]
[1725270753827,0.00817,58455.0,58454.0,0.985464]
[1725270754039,0.00817,58455.0,58454.0,1.15846946]
[1725270754293,0.0114859,58476.0,58466.0,0.838092]
[1725270754505,0.02684084,58468.0,58466.0,0.984692]
[1725270754723,0.0114859,58476.0,58466.0,0.984692]
[1725270755409,0.0114859,58476.0,58466.0,1.224147]
[1725270755627,0.0114859,58476.0,58466.0,1.324147]
[1725270755837,0.0114859,58476.0,58466.0,1.347147]
[1725270756052,0.0114859,58476.0,58466.0,1.107692]
[1725270757029,0.0114859,58476.0,58466.0,1.086692]
[1725270757267,0.00816,58497.0,58493.0,0.0852]
[1725270757500,0.00816,58514.0,58499.0,0.35898]
[1725270757714,0.00816,58514.0,58499.0,0.92282]
[1725270757929,0.00816,58514.0,58499.0,0.0852]
[1725270758201,0.239282,58509.0,58492.0,0.239347]
[1725270758456,0.247422,58514.0,58499.0,0.35898]
[1725270758703,0.247422,58514.0,58499.0,0.11966]
[1725270758973,0.119642,58508.0,58496.0,0.239331]
[1725270759205,0.119632,58513.0,58499.0,0.11966]
[1725270759422,1.74054566,58500.0,58499.0,0.26776]
[1725270759677,1.73673204,58500.0,58499.0,0.1481]
[1725270759944,1.73673204,58500.0,58499.0,0.11966]
[1725270760608,1.73673204,58500.0,58496.0,0.23933]
[1725270760609,1.73673204,58500.0,58493.0,0.0793]
[1725270760817,1.7316159,58500.0,58493.0,0.0793]
[1725270761045,1.7316159,58500.0,58495.0,0.119667]
[1725270761271,1.7316159,58500.0,58493.0,0.0793]
[1725270761510,1.7316159,58500.0,58493.0,0.1793]
[1725270761725,1.7316159,58500.0,58493.0,0.0793]
[1725270761932,0.119663,58498.0,58493.0,0.0793]
[1725270762353,1.7316159,58500.0,58489.0,0.239359]
[1725270762581,1.7316159,58500.0,58493.0,0.00341891]
[1725270762816,1.8512739,58500.0,58493.0,0.00341891]
[1725270763033,1.7316159,58500.0,58493.0,0.00341891]
[1725270763244,1.7316159,58500.0,58499.0,0.11966]
[1725270763487,1.7316159,58500.0,58499.0,0.51218]
[1725270763982,1.7316159,58500.0,58499.0,0.7515]
[1725270764222,1.7324319,58500.0,58499.0,0.7515]
[1725270764431,0.83562692,58500.0,58499.0,1.11882]
[1725270764889,0.83562692,58500.0,58499.0,1.12082]
[1725270765371,0.83562692,58500.0,58499.0,1.11382]
[1725270765389,0.62466814,58500.0,58499.0,1.11582]
[1725270765607,0.0004,58519.0,58518.0,0.375863]
[1725270765826,0.0004,58519.0,58518.0,1.32371738]
[1725270766043,0.0004,58519.0,58518.0,1.25265246]
[1725270766265,0.0004,58519.0,58518.0,1.22965246]
[1725270766508,0.0004,58519.0,58518.0,1.26765246]
[1725270766745,0.0004,58519.0,58518.0,1.56095938]
[1725270767192,0.0004,58519.0,58518.0,1.32171738]
[1725270767425,0.0004,58519.0,58518.0,1.25765246]
[1725270767644,0.0004,58519.0,58518.0,1.25265246]
[1725270768178,0.00806,58526.0,58525.0,0.119607]
[1725270768396,0.00806,58526.0,58525.0,0.60145175]
[1725270768645,0.00786,58526.0,58522.0,0.239222]
[1725270768881,0.00786,58526.0,58523.0,0.10341661]
[1725270769100,0.00786,58526.0,58525.0,0.119607]
[1725270769379,0.00766,58526.0,58525.0,0.119607]
[1725270769591,0.00766,58526.0,58525.0,0.358821]
[1725270769832,0.00766,58526.0,58525.0,0.917249]
[1725270770069,0.00746,58526.0,58525.0,1.37842792]
[1725270770505,0.00746,58526.0,58525.0,1.326363]
[1725270770738,0.00726,58526.0,58525.0,1.37842792]
[1725270770960,0.00726,58526.0,58525.0,1.085149]
[1725270771181,0.00726,58526.0,58525.0,0.845935]
[1725270771395,0.00706,58526.0,58525.0,0.119607]
[1725270771681,0.00706,58526.0,58518.0,0.15]
[1725270771878,0.00706,58526.0,58522.0,0.119612]
[1725270772108,0.00686,58526.0,58519.0,0.239237]
[1725270772410,0.00686,58526.0,58525.0,0.598035]
[1725270772645,0.00686,58526.0,58525.0,0.986449]
[1725270772938,0.00666,58526.0,58525.0,0.986449]
[1725270773125,0.00666,58526.0,58525.0,1.230663]
[1725270773345,0.00646,58526.0,58525.0,1.084449]
[1725270774257,0.00626,58526.0,58525.0,1.084449]
[1725270774968,0.00606,58526.0,58525.0,1.338663]
[1725270775178,0.00606,58526.0,58525.0,1.363663]
[1725270775425,0.0114859,58534.0,58531.0,1.40225546]
[1725270775657,0.0114859,58534.0,58531.0,1.51825546]
[1725270775891,0.0114859,58534.0,58531.0,1.49525546]
[1725270776114,0.0114859,58534.0,58531.0,1.25606646]
[1725270776583,0.0114859,58534.0,58531.0,1.15606646]
[1725270777062,0.0114859,58534.0,58531.0,0.91687746]
[1725270777305,0.0114859,58534.0,58531.0,0.119594]
[1725270777522,0.0114859,58534.0,58531.0,0.12301066]
[1725270777737,0.0114859,58534.0,58524.0,0.0844]
[1725270777972,0.0114859,58534.0,58510.0,0.244271]
[1725270777973,0.0114859,58534.0,58531.0,0.358783]
[1725270778266,0.0114859,58534.0,58531.0,0.680272]
[1725270778512,0.0114859,58534.0,58531.0,0.441083]
[1725270778938,0.0114859,58534.0,58531.0,0.358783]